Cogmind - Beta 10.2 @@@ ROGUE MODE // 2021.04.06 @ 14:50:38 Player: thingamajigger Result: Destroyed by G-34 Mercenary with Small Laser Performance ------------- Evolutions (1) 500 Regions Visited (3) 600 Robots Destroyed (12) 60 Value Destroyed (212) 212 Prototype IDs (0) 0 Alien Tech Used (0) 0 Bonus (25) 25 TOTAL SCORE: 1397 Bonus ------- Follower Combat Kills 25 Cogmind --------- Core Integrity 0/400 Matter 254/300 Energy 99/100 System Corruption 0% Temperature Cool (6) Movement Core (50) Location -9/Materials Parts ------- > --- POWER (1) -------- (None) > --- PROPULSION (2) --- (None) > --- UTILITY (4) ------ Signal Interpreter Hacking Suite > --- WEAPON (2) ------- (None) > --- INVENTORY (4) ---- Light Deuterium Engine Hacking Suite Light Assault Rifle Light Assault Rifle Peak State ------------ > --- POWER ------------ Light Deuterium Engine > --- PROPULSION ------- Flight Unit > --- UTILITY ---------- Signal Interpreter Advanced Terrain Scanner Hacking Suite Hacking Suite > --- WEAPON ----------- (None) > --- INVENTORY -------- Improved Terrain Scanner Light Assault Rifle Light Assault Rifle [Rating: 14] Favorites ----------- Power Light Ion Engine Engine Light Ion Engine Propulsion Flight Unit Wheel Compact Wheel Flight Unit Flight Unit Utility Seismic Analyzer Device Advanced Terrain Scanner Storage Large Storage Unit Processor Seismic Analyzer Hackware Hacking Suite Weapon Assault Rifle Energy Gun Small Laser Ballistic Gun Assault Rifle Launcher Grenade Launcher Build | -11 -10 -10 -9 ------- Run | Scr Mat Min Mat Slots Evolved 2 | . . . 2 Power . | . . . . Propulsion . | . . . . Utility 2 | . . . 2 Weapon . | . . . . Parts Attached 26 | 7 5 7 7 Power 4 | 1 1 1 1 Engine 4 | 1 1 1 1 Core . | . . . . Reactor . | . . . . Propulsion 7 | 2 1 4 . Treads . | . . . . Leg . | . . . . Wheel 3 | 2 1 . . Hover . | . . . . Flight 4 | . . 4 . Utility 10 | 2 1 1 6 Device 3 | . . . 3 Storage 2 | 1 1 . . Processor 2 | 1 . 1 . Hackware 3 | . . . 3 Protection . | . . . . Artifact . | . . . . Weapon 5 | 2 2 1 . Energy Gun 3 | 1 2 . . Energy Cannon . | . . . . Ballistic Gun 1 | 1 . . . Ballistic Cannon . | . . . . Launcher 1 | . . 1 . Special Weapon . | . . . . Impact Weapon . | . . . . Slashing Weapon . | . . . . Piercing Weapon . | . . . . Special Melee Weapon . | . . . . Unidentified Prototypes . | . . . . Parts Lost 13 | . 3 7 3 Power 2 | . 1 1 . Propulsion 5 | . 1 3 1 Utility 2 | . . . 2 Weapon 4 | . 1 3 . Highest Loss Streak 4 | . 3 4 1 Average Slot Usage (%) 70 | . 97 63 48 Engine 6 | . 13 2 4 Wheel 9 | . 27 2 . Flight 9 | . . 20 4 Storage 4 | . 14 1 . Processor 17 | . 14 25 11 Hackware 7 | . . . 27 Energy Gun 4 | . 13 . . Ballistic Gun 8 | . 14 9 . Naked Turns . | . . . . Heaviest Build 24 | 10 24 23 6 Greatest Support 26 | 26 26 26 4 Greatest Overweight (x) 1 | . 1 . 1 Average Overweight (x) . | . . . . Largest Inventory Capacity 10 | 6 10 10 4 Average Capacity 5 | 5 9 4 4 Most Carried 10 | 5 8 10 4 Average Carried 3 | 1 5 3 3 Final Capacity 10 | 6 10 4 4 Final Carried 8 | 5 8 3 4 Class Distribution -------------------- 53% | Mutant 23% | Scavenger-Mutant 23% | Hacker-Mutant Dominant Class ---------------- Scavenger-Mutant | -10/Materials Mutant | -10/Mines Hacker-Mutant | -9/Materials Resources | -11 -10 -10 -9 ----------- Run | Scr Mat Min Mat Matter Collected 478 | 193 82 185 18 Remotely . | . . . . Salvage Created 250 | 35 148 67 . Parts 25 | 9 8 8 . Haulers Intercepted . | . . . . Recyclers Shooed 1 | 1 . . . Parts Field Recycled . | . . . . Retrieved Matter . | . . . . Parts Self-Destructed . | . . . . Prevented . | . . . . Kills | -11 -10 -10 -9 ------- Run | Scr Mat Min Mat Combat Hostiles Destroyed 9 | . 3 6 . Guns 6 | . 3 3 . AOE 3 | . . 3 . Classes Destroyed 4 | 1 2 1 . Tunneler 2 | 2 . . . Watcher 1 | . 1 . . Swarmer 6 | . . 6 . Grunt 3 | . 3 . . Best Kill Streak 3 | 2 3 3 . Combat Bots Only 3 | . 3 3 . Max Kills in Single Turn 2 | 1 1 2 . Gunslinging . | . . . . Exploded 2 | . . 2 . Melee . | . . . . Uniques/NPCs Destroyed . | . . . . Combat | -11 -10 -10 -9 -------- Run | Scr Mat Min Mat Damage Taken 1147 | . 246 448 453 Core 582 | . 50 128 404 Absorbed by Shields . | . . . . Core Remaining (%) 64 | 100 . 28 . Volleys Fired 34 | 5 21 8 . Largest 2 | 2 2 2 . Hottest 60 | 60 60 60 . Shots Fired 60 | 10 39 11 . Gun 58 | 10 39 9 . Cannon . | . . . . Launcher 2 | . . 2 . Special . | . . . . Kinetic 32 | 5 21 6 . Thermal 15 | 5 7 3 . Explosive 2 | . . 2 . Electromagnetic 11 | . 11 . . Robot Hit Streak 10 | 3 10 4 . Robot Miss Streak 3 | 3 2 2 . Penetration Max . | . . . . Secondary Targets 2 | . . 2 . Max Gunslinging Chain 1 | . . 1 . Shots Hit Robots 35 | 4 25 6 . Core Hits 16 | 2 7 6 1 Critical Hits . | . . . . Critical Kills . | . . . . Critical Parts Destroyed . | . . . . Melee Attacks . | . . . . Impact . | . . . . Slashing . | . . . . Piercing . | . . . . Sneak Attacks . | . . . . Combat Hostiles . | . . . . Follow-up Attacks . | . . . . Damage Inflicted 512 | 56 283 169 4 Guns 409 | 56 283 70 . Cannons . | . . . . Explosions 99 | . . 99 . Melee . | . . . . Ramming 4 | . . . 4 Kinetic 212 | 25 150 37 . Thermal 120 | 31 56 33 . Explosive 99 | . . 99 . Electromagnetic 77 | . 77 . . Impact . | . . . . Slashing . | . . . . Piercing . | . . . . Highest Corruption . | . . . . Average Corruption . | . . . . Corruption Purged . | . . . . Overload Shots . | . . . . Overflow Damage . | . . . . Projectiles . | . . . . Explosions . | . . . . Melee . | . . . . Knockbacks . | . . . . Impact . | . . . . Kinetic . | . . . . Secondary . | . . . . Self-Inflicted Damage 50 | . . 48 2 Shots 2 | . . 2 . Rammed 1 | . . . 1 Targets Rammed 1 | . . . 1 Kicked . | . . . . Crushed . | . . . . Highest Temperature 87 | . 87 . . Average Temperature 28 | . 28 . . Received Heat Transfer 498 | . 171 156 171 Siege Activations . | . . . . Robots Corrupted . | . . . . Combat Hostiles . | . . . . Parts Fried 1 | . 1 . . Impact Corruptions . | . . . . Robots Melted . | . . . . Combat Hostiles . | . . . . Parts Melted . | . . . . Heat Transferred 275 | 75 125 75 . Parts Sabotaged . | . . . . Parts Stolen . | . . . . Parts Stripped . | . . . . Power Chain Reactions . | . . . . Missiles Intercepted . | . . . . Alert | -11 -10 -10 -9 ------- Run | Scr Mat Min Mat Peak Influence 366 | 10 133 366 142 Initial 64 | . 6 51 64 Average 122 | 3 66 207 95 Maximum Alert Level 1 | . . 1 . Low Security (%) 82 | 100 100 53 100 Level 1 17 | . . 46 . Level 2 . | . . . . Level 3 . | . . . . Level 4 . | . . . . Level 5 . | . . . . High Security . | . . . . Max Security . | . . . . Squads Dispatched 4 | . 1 . 3 Investigation . | . . . . Extermination . | . . . . Reinforcement 4 | . 1 . 3 Assault . | . . . . Garrison . | . . . . Intercept . | . . . . Construction Impeded . | . . . . Haulers Reinforced . | . . . . Stealth | -11 -10 -10 -9 --------- Run | Scr Mat Min Mat Distress Signals 2 | . . . 2 Communications Jammed . | . . . . Distress Signals . | . . . . Times Spotted 38 | . 7 19 12 Peak Tracking Total 7 | . 3 5 7 Tactical Retreats 9 | . 1 6 2 Traps | -11 -10 -10 -9 ------- Run | Scr Mat Min Mat Traps Triggered . | . . . . Indirectly . | . . . . Trap Hack Attempts . | . . . . Triggered . | . . . . Disarmed . | . . . . Reprogrammed . | . . . . Reused . | . . . . Traps Extracted . | . . . . Installed . | . . . . Triggered . | . . . . Machines | -11 -10 -10 -9 ---------- Run | Scr Mat Min Mat Machines Disabled 2 | . 1 1 . Max in Single Turn 1 | . 1 1 . Machines Sabotaged . | . . . . Garrisons Compromised . | . . . . Overloaded Fab Kills . | . . . . Fab Network Shutdowns . | . . . . Hacking | -11 -10 -10 -9 --------- Run | Scr Mat Min Mat Machines Accessed 7 | . 5 . 2 Terminals 7 | . 5 . 2 Fabricators . | . . . . Repair Stations . | . . . . Recycling Units . | . . . . Scanalyzers . | . . . . Garrison Access . | . . . . Total Hacks 21 | . 13 . 8 Successful 10 | . 5 . 5 Failed 11 | . 8 . 3 Catastrophic . | . . . . Database Lockouts . | . . . . Manual 13 | . 7 . 6 Terminals 21 | . 13 . 8 Fabricators . | . . . . Repair Stations . | . . . . Recycling Units . | . . . . Scanalyzers . | . . . . Garrison Access . | . . . . Terminal Hacks 6 | . 2 . 4 Record 1 | . . . 1 Branch Access Points 2 | . 1 . 1 Terminal Index 1 | . . . 1 Alert Level 2 | . 1 . 1 Fabricator Hacks . | . . . . Repair Station Hacks . | . . . . Recycling Unit Hacks . | . . . . Scanalyzer . | . . . . Garrison Access Hacks . | . . . . Unauthorized Hacks 4 | . 3 . 1 Terminals 4 | . 3 . 1 Botnet 4 | . 3 . 1 Fabricators . | . . . . Repair Stations . | . . . . Recycling Units . | . . . . Scanalyzers . | . . . . Garrison Access . | . . . . Data Cores Recovered . | . . . . Used . | . . . . Hacking Detections 7 | . 5 . 2 Full Trace Events . | . . . . Feedback Events . | . . . . Feedback Blocked . | . . . . Robot Schematics Acquired . | . . . . Robots Built . | . . . . Matter . | . . . . Time . | . . . . Total Robot Build Rating . | . . . . Part Schematics Acquired . | . . . . Parts Built . | . . . . Matter . | . . . . Time . | . . . . Total Part Build Rating . | . . . . Parts Repaired . | . . . . Time . | . . . . Parts Recycled . | . . . . Recycled Matter . | . . . . Retrieved Matter . | . . . . Retrieved Components . | . . . . Parts Scanalyzed . | . . . . Part Schematics Acquired . | . . . . Parts Damaged . | . . . . Bothacking | -11 -10 -10 -9 ------------ Run | Scr Mat Min Mat Used RIF Installer . | . . . . Robots Hacked . | . . . . Non-combat . | . . . . Combat . | . . . . Robot Hacks Applied . | . . . . Relay Couplers Released . | . . . . Robots Rewired . | . . . . Allies Hacked . | . . . . Hacks Repelled . | . . . . Allies | -11 -10 -10 -9 -------- Run | Scr Mat Min Mat Total Allies 1 | . . 1 . Largest Group 1 | . . 1 . Highest-Rated Group 31 | . . 31 . Highest-Rated Ally 31 | . . 31 . Total Orders . | . . . . Ally Attacks 7 | . . 7 . Total Damage 125 | . . 125 . Kills 1 | . . 1 . Allies Corrupted . | . . . . Allies Melted . | . . . . Intel | -11 -10 -10 -9 ------- Run | Scr Mat Min Mat Robot Analysis Total . | . . . . Derelict Logs Recovered 1 | . . 1 . Drone Launches . | . . . . Drone Recoveries . | . . . . Exploration | -11 -10 -10 -9 ------------- Run | Scr Mat Min Mat Turns Passed 1097 | 86 326 420 265 Spaces Moved 1398 | 63 257 729 349 Core 310 | 1 . 41 268 Treads . | . . . . Legs . | . . . . Wheels 326 | 62 257 7 . Hover . | . . . . Flight 762 | . . 681 81 Fastest Speed 37 | 50 90 37 40 Average Speed 57 | 87 90 39 64 Slowest Speed 120 | 90 110 90 120 Overloaded Moves . | . . . . Propulsion Burnouts . | . . . . Robots Hopped 11 | . . 11 . Cave-ins Triggered . | . . . . Exploration Rate (%) 39 | 3 29 99 27 Regions Visited 3 Branch Regions 1 Pre-discovered Areas . | . . . . Known Exits Taken 2 | . 1 1 . Unknown Exits Taken 1 | 1 . . . Scrap Searched 2 | . . 2 . Spaces Dug . | . . . . Terrain Destroyed 12 | . . 12 . Melee . | . . . . Projectile . | . . . . AOE 12 | . . 12 . Terrain Rammed . | . . . . Walls Destroyed . | . . . . Machines Disabled . | . . . . Actions | -11 -10 -10 -9 --------- Run | Scr Mat Min Mat Total 1620 | 79 310 842 389 Wait 140 | . 23 93 24 Move 1373 | 62 256 706 349 Hop 11 | . . 11 . Pick Up 17 | 5 4 7 1 Fast Attach 17 | 7 2 2 6 Attach 6 | . 1 4 1 Detach 5 | . . 1 4 Swap 3 | . 2 1 . Drop 13 | . 1 9 3 Fire 34 | 5 21 8 . Melee . | . . . . Ram 1 | . . . 1 Kick . | . . . . Crush . | . . . . Escape Stasis . | . . . . Rewire . | . . . . Trap . | . . . . Miscellaneous . | . . . . Route ------- -11/Scrapyard -10/Materials -10/Mines (discovered 2 exits: *Mat x2) -9/Materials (discovered 1 exit: Min) History --------- Turn | Location | Event 9 | -11/Scrapyard | Discovered new exit (range 16) 87 | -11/Scrapyard | Entered Materials 280 | -10/Materials | Lost 3 parts (1p1n1w) 381 | -10/Materials | Identified exit to Mines 413 | -10/Materials | Entered Mines 454 | -10/Mines | Discovered new exit (range 5) 648 | -10/Mines | Learned 2 Materials zone layouts 667 | -10/Mines | Discovered new exit (range 6) 668 | -10/Mines | Identified exit to Materials 670 | -10/Mines | Received a Mining Laser from a helpful Derelict 698 | -10/Mines | Core integrity fell below 50% 723 | -10/Mines | Lost 4 parts (3n1w) 795 | -10/Mines | Build established: Mutant 833 | -10/Mines | Entered Materials 833 | -9/Materials | Evolved 2 slots: Utility x2 984 | -9/Materials | Identified exit to Mines 1038 | -9/Materials | Core integrity fell below 50% 1090 | -9/Materials | Core integrity fell below 20% 1098 | -9/Materials | Destroyed by G-34 Mercenary with Small Laser Last Messages --------------- dealt with, suggesting they are originating from deeper in the [Caves], which extend furthest at those depths. 00984_ Connecting with Terminal... >>Access(Branch) Found 1 branch access point: (48,49) Mines Map updated. 00990_ Atomic Centrifuge disabled. 01008_ K-01 Serf collects debris. 01018_ ALERT: Hostiles spotted, dispatching reinforcements to Terminal M009. 01019_ K-01 Serf collects debris. 01020_ K-01 Serf destroyed. 01021_ Acquired 18 matter. 01041_ Hacking Suite destroyed. 01056_ W-16 Scout sends out distress signal. 01074_ Slammed into K-01 Serf. 01076_ T-07 Excavator is excavating. 01082_ Hacking Suite destroyed. 01086_ W-16 Scout sends out distress signal. Map ----- +----------------------------------------------------+ | ?????# # #! # #???? | | ?????# # # + ##### ##???? | | ?????####+####### #== # "T" # #??? #???? | | ?????# #?# #= # ""??# #???####???? | | ?????# #?# # ?###???## ##?????????? | | ?????# #?# ###+########## #?????????? | | ?????# ### #?????????? | | ?????# * + #?????????? | | ?????# ### #?????????? | | ?????# ####+##### ####### #?????????? | | ?????# ## ## g#?????#######?????????? | | ?????# ## " ##r #?????????????????????? | | ?????########### """## #?????????????????????? | | #??###########?# """## #?????????????????????? | | ???# ||| #?# """## #?????????????????????? | | ???# ||| #?# "" ##g ########??????????????? | | ???# || #?# """## # #??????????????? | | ???# #?# ""## r # #??????????????? | | ???# #?# """## # #??????????????? | | ???# #?# " ## ; #??????????????? | | ???# #?# ##Y # "T" #??????????????? | | ???# #?# ##Y # #??????????????? | | ???#####+#####?# ## ########??????????????? | | ####### #????######### #?????????????????????? | | # #????????????# #?????????????????????? | | " # #????????????# @ #????#????????????????? | | "" / #?????######?# #??? #####????????????? | | "" # #????##!!!!### #??? ]#????????????? | | |# #????#! !## #?? #????????????? | | ####### ##???#! !## ##? #????????????? | | # #???# # # """ #????????????? | | # ##### "" # """ #????????????? | | / [ T + """ #????????????? | | """" # ##### # #????????????? | | """" # ! #???# #### # [[[ !#????????????? | | """" ### ###???# #??#######? [[ #????????????? | | ######?# #?????# #?????????? [[ #????????????? | | ???????# #?????# #??????????? #??>?????????? | | ???????# #?????# #????????######### ????????? | | ???????# #?????# #????????????????# ????????? | | ????####+####??# #????????????????# ????????? | | ????# #??# #????????????????## ????????? | | ????# """#??# #?????????????????# ????????? | | ????# """#??# #?????????????????# ????????? | | ????# """#??# #?????????????????# ????????? | | ????# #??# ############??????# ????????? | | ????#########??# ## #?#######+#????????? | | ???????????????# ## #?# ????????? | | ???????????????? # #?# ????????? | | ???????????????? # """ """ #?# """ """????????? | +----------------------------------------------------+ Best States ------------- Heat Dissipation 28 Energy Generation 14 Energy Capacity 250 Matter Stores 300 Matter Capacity 300 Sight Range 16 Terrain Scan Density 60 Evasion (%) 62 Offensive Hacking 30 Item Schematics ----------------- None Robot Schematics ------------------ None Fabricated ------------ Nothing Alien Tech Used ----------------- None Achievements -------------- None Challenges ------------ None Game ------ Seed MinesnifferWeightWheel Manual? 0 Play Time 00:13:46 Cumulative 27.8 hours Start 2021.04.06 @ 14:40:15 End 2021.04.06 @ 14:50:38 Sessions 1 Manual Loads 0 Difficulty Rogue Special Mode None Game No. 63 Rogue 60 Adventurer 0 Explorer 3 Win Type - Total 0 Types 0/0/0/0/0/0/0/0/0 Lore% 28 Gallery% 47 Achievement% 30 Wizard Run 0 Options --------- ASCII 0 Keyboard 1 Movement Numpad Keybinds 0 Fullscreen 1 Font 18/SmallcapsGlow Map View 76x50 Tactical HUD 1 Map Filters NONE Filters NONE Steam 1 RUN: 93b43648-2f26-4e5f-a96f-5b39a85c49ba